[Event "*** Titled Tuesday Blitz"]
[Site "Chess.com"]
[Date "2021.04.06"]
[Round "1"]
[White "Hongjin"]
[Black "Kiborg95"]
[Result "0-1"]
[WhiteElo "2424"]
[BlackElo "2804"]
[TimeControl "180+1"]
[EndTime "10:05:57 PDT"]
[Termination "Kiborg95 won on time"]

1. e4 {[%clk 0:00:12.9]} 1... d6 {[%clk 0:02:56.9]} 2. Nc3 {[%clk 0:00:13.1]}
2... e5 {[%clk 0:02:56.9]} 3. Nf3 {[%clk 0:00:13.7]} 3... Nf6 {[%clk 0:02:56.9]}
4. d4 {[%clk 0:00:12.8]} 4... Nbd7 {[%clk 0:02:57]} 5. Bc4 {[%clk 0:00:12.2]}
5... Be7 {[%clk 0:02:56.6]} 6. O-O {[%clk 0:00:12.7]} 6... O-O {[%clk
0:02:57.3]} 7. Re1 {[%clk 0:00:12.8]} 7... c6 {[%clk 0:02:57.7]} 8. h3 {[%clk
0:00:12.2]} 8... b5 {[%clk 0:02:57.3]} 9. Bf1 {[%clk 0:00:12.1]} 9... Bb7 {[%clk
0:02:57.8]} 10. a4 {[%clk 0:00:10.5]} 10... b4 {[%clk 0:02:56.3]} 11. Nb1 {[%clk
0:00:10.9]} 11... Re8 {[%clk 0:02:45.3]} 12. Nbd2 {[%clk 0:00:09.9]} 12... a5
{[%clk 0:02:42.3]} 13. c3 {[%clk 0:00:10.1]} 13... Bf8 {[%clk 0:02:34.3]} 14.
Bc4 {[%clk 0:00:09.5]} 14... h6 {[%clk 0:02:19.8]} 15. Bb3 {[%clk 0:00:09.2]}
15... Qc7 {[%clk 0:02:14.9]} 16. Qc2 {[%clk 0:00:08.5]} 16... Rac8 {[%clk
0:02:10.5]} 17. Nc4 {[%clk 0:00:08.3]} 17... exd4 {[%clk 0:02:09]} 18. cxd4
{[%clk 0:00:04.5]} 18... d5 {[%clk 0:01:59.5]} 19. Nce5 {[%clk 0:00:04.6]} 19...
Nxe5 {[%clk 0:01:46.3]} 20. Nxe5 {[%clk 0:00:05.5]} 20... Qb6 {[%clk 0:01:43.1]}
21. exd5 {[%clk 0:00:04]} 21... cxd5 {[%clk 0:01:42.8]} 22. Qd3 {[%clk
0:00:03.5]} 22... Ba6 {[%clk 0:01:38.1]} 23. Qd1 {[%clk 0:00:03.1]} 23... Bc4
{[%clk 0:01:30.3]} 24. Bc2 {[%clk 0:00:02.9]} 24... b3 {[%clk 0:01:27.1]} 25.
Bb1 {[%clk 0:00:03]} 25... Bb4 {[%clk 0:01:20.3]} 26. Bd2 {[%clk 0:00:02.1]}
26... Qxd4 {[%clk 0:01:15.1]} 27. Bxb4 {[%clk 0:00:01.5]} 27... Qxd1 {[%clk
0:01:15.1]} 28. Rxd1 {[%clk 0:00:01.9]} 28... axb4 {[%clk 0:01:15.6]} 0-1

[Event "*** Titled Tuesday Blitz"]
[Site "Chess.com"]
[Date "2021.04.06"]
[Round "1"]
[White "AdrianaNikolova"]
[Black "Alliswell998"]
[Result "0-1"]
[WhiteElo "2331"]
[BlackElo "2627"]
[TimeControl "180+1"]
[EndTime "10:05:58 PDT"]
[Termination "Alliswell998 won on time"]

1. e4 {[%clk 0:03:00]} 1... c5 {[%clk 0:02:56.9]} 2. Nf3 {[%clk 0:02:58.5]} 2...
d6 {[%clk 0:02:55.8]} 3. d4 {[%clk 0:02:58.1]} 3... cxd4 {[%clk 0:02:56.7]} 4.
Nxd4 {[%clk 0:02:58.6]} 4... Nf6 {[%clk 0:02:56.7]} 5. Nc3 {[%clk 0:02:59]} 5...
a6 {[%clk 0:02:56]} 6. Bg5 {[%clk 0:02:58.9]} 6... e6 {[%clk 0:02:53.9]} 7. f4
{[%clk 0:02:59.3]} 7... Be7 {[%clk 0:02:51.2]} 8. Qf3 {[%clk 0:02:58.8]} 8... h6
{[%clk 0:02:51.9]} 9. Bxf6 {[%clk 0:02:51.9]} 9... Bxf6 {[%clk 0:02:52.8]} 10.
O-O-O {[%clk 0:02:51.4]} 10... Qb6 {[%clk 0:02:48.9]} 11. Nb3 {[%clk 0:02:40.9]}
11... Qc7 {[%clk 0:02:49.2]} 12. Qd3 {[%clk 0:02:15.2]} 12... Bxc3 {[%clk
0:02:43.5]} 13. bxc3 {[%clk 0:02:16.1]} 13... O-O {[%clk 0:02:40.2]} 14. Kb2
{[%clk 0:02:15.6]} 14... Rd8 {[%clk 0:02:35.5]} 15. f5 {[%clk 0:02:12.6]} 15...
Nc6 {[%clk 0:02:26]} 16. Qg3 {[%clk 0:01:59.8]} 16... a5 {[%clk 0:02:05.9]} 17.
f6 {[%clk 0:01:04.9]} 17... g6 {[%clk 0:01:57.6]} 18. Qe3 {[%clk 0:00:33]} 18...
Kh7 {[%clk 0:01:51.9]} 19. h4 {[%clk 0:00:32.3]} 19... a4 {[%clk 0:01:39.5]} 20.
Nd4 {[%clk 0:00:32.6]} 20... a3+ {[%clk 0:01:34.9]} 21. Ka1 {[%clk 0:00:32.4]}
21... Nxd4 {[%clk 0:01:29.6]} 22. Rxd4 {[%clk 0:00:29.3]} 22... Qb6 {[%clk
0:01:10.6]} 23. Qc1 {[%clk 0:00:21.5]} 23... e5 {[%clk 0:01:09.2]} 24. Rb4
{[%clk 0:00:14.6]} 24... Qc5 {[%clk 0:01:07.3]} 25. Rc4 {[%clk 0:00:06.2]} 25...
Qf2 {[%clk 0:01:07.3]} 0-1

[Event "*** Titled Tuesday Blitz"]
[Site "Chess.com"]
[Date "2021.04.06"]
[Round "1"]
[White "TigranMukhutdinov"]
[Black "BJthechessgod"]
[Result "1-0"]
[WhiteElo "2609"]
[BlackElo "2303"]
[TimeControl "180+1"]
[EndTime "10:06:00 PDT"]
[Termination "TigranMukhutdinov won by resignation"]

1. Nf3 {[%clk 0:03:00.9]} 1... c5 {[%clk 0:02:59.2]} 2. e4 {[%clk 0:02:59.4]}
2... e6 {[%clk 0:02:56.8]} 3. d4 {[%clk 0:02:58.9]} 3... cxd4 {[%clk 0:02:57.7]}
4. Nxd4 {[%clk 0:02:59.7]} 4... Nc6 {[%clk 0:02:50.7]} 5. Nc3 {[%clk 0:02:59]}
5... Qc7 {[%clk 0:02:47.8]} 6. Be2 {[%clk 0:02:54.2]} 6... Nf6 {[%clk
0:02:42.6]} 7. O-O {[%clk 0:02:51.5]} 7... Be7 {[%clk 0:02:40.9]} 8. Be3 {[%clk
0:02:49.8]} 8... O-O {[%clk 0:02:39.2]} 9. Kh1 {[%clk 0:02:47.1]} 9... d6 {[%clk
0:02:35.8]} 10. f4 {[%clk 0:02:47]} 10... a6 {[%clk 0:02:23.3]} 11. a4 {[%clk
0:02:46.1]} 11... Bd7 {[%clk 0:02:18.3]} 12. Nb3 {[%clk 0:02:45.9]} 12... b6
{[%clk 0:02:16.1]} 13. Bf3 {[%clk 0:02:44.2]} 13... Rac8 {[%clk 0:02:02.4]} 14.
Qd2 {[%clk 0:02:42.4]} 14... Rfd8 {[%clk 0:01:53.9]} 15. Qf2 {[%clk 0:02:40.5]}
15... Rb8 {[%clk 0:01:50.2]} 16. g4 {[%clk 0:02:34.5]} 16... h6 {[%clk
0:01:40.3]} 17. g5 {[%clk 0:02:23.4]} 17... hxg5 {[%clk 0:01:39.8]} 18. fxg5
{[%clk 0:02:24.3]} 18... Nh7 {[%clk 0:01:26]} 19. Bh5 {[%clk 0:02:22.1]} 19...
f6 {[%clk 0:01:23.8]} 20. Bg6 {[%clk 0:02:11.1]} 20... Nf8 {[%clk 0:01:10.3]}
21. Rg1 {[%clk 0:02:06.2]} 21... Nxg6 {[%clk 0:00:50.7]} 22. gxf6 {[%clk
0:02:06.3]} 22... Bxf6 {[%clk 0:00:51.3]} 23. Rxg6 {[%clk 0:02:06.1]} 23... Kf7
{[%clk 0:00:51.8]} 24. Rag1 {[%clk 0:02:04.5]} 24... Rf8 {[%clk 0:00:40.9]} 25.
Rxg7+ {[%clk 0:02:00.1]} 25... Ke8 {[%clk 0:00:39.2]} 26. Rg8 {[%clk 0:01:58.3]}
26... Ke7 {[%clk 0:00:32.6]} 27. Rxf8 {[%clk 0:01:33.7]} 27... Rxf8 {[%clk
0:00:33.5]} 28. Bxb6 {[%clk 0:01:27.5]} 28... Qb7 {[%clk 0:00:17.7]} 29. Qe3
{[%clk 0:01:23.8]} 29... Ne5 {[%clk 0:00:12.5]} 30. Bd4 {[%clk 0:01:20.4]} 30...
Nc4 {[%clk 0:00:11.3]} 31. Bxf6+ {[%clk 0:01:19.6]} 31... Rxf6 {[%clk
0:00:10.1]} 32. Qd4 {[%clk 0:01:17.6]} 32... Rf7 {[%clk 0:00:05.4]} 33. Qxc4
{[%clk 0:01:16.2]} 1-0

[Event "*** Titled Tuesday Blitz"]
[Site "Chess.com"]
[Date "2021.04.06"]
[Round "1"]
[White "anon481216"]
[Black "chessmadara"]
[Result "0-1"]
[WhiteElo "2509"]
[BlackElo "2194"]
[TimeControl "180+1"]
[EndTime "10:06:01 PDT"]
[Termination "chessmadara won by checkmate"]

1. d4 {[%clk 0:02:57.8]} 1... Nf6 {[%clk 0:03:00.1]} 2. c4 {[%clk 0:02:57.2]}
2... g6 {[%clk 0:03:00.3]} 3. Nc3 {[%clk 0:02:56.9]} 3... d5 {[%clk 0:03:00.5]}
4. cxd5 {[%clk 0:02:56.7]} 4... Nxd5 {[%clk 0:03:01.4]} 5. g3 {[%clk 0:02:57.2]}
5... Bg7 {[%clk 0:02:59.5]} 6. Bg2 {[%clk 0:02:56.1]} 6... Nxc3 {[%clk
0:02:54.6]} 7. bxc3 {[%clk 0:02:54.5]} 7... c5 {[%clk 0:02:55.2]} 8. e3 {[%clk
0:02:47.7]} 8... O-O {[%clk 0:02:54.6]} 9. Ne2 {[%clk 0:02:47.8]} 9... Nc6
{[%clk 0:02:49.9]} 10. O-O {[%clk 0:02:46.4]} 10... Qc7 {[%clk 0:02:23.4]} 11.
Ba3 {[%clk 0:02:41.2]} 11... cxd4 {[%clk 0:02:19.7]} 12. cxd4 {[%clk 0:02:40.2]}
12... Rd8 {[%clk 0:02:19.6]} 13. Rc1 {[%clk 0:02:29.6]} 13... Qa5 {[%clk
0:02:19.2]} 14. Qb3 {[%clk 0:02:19.6]} 14... Be6 {[%clk 0:01:45.5]} 15. Qxb7
{[%clk 0:02:15.8]} 15... Qxa3 {[%clk 0:01:44.3]} 16. Rxc6 {[%clk 0:01:57.2]}
16... Rab8 {[%clk 0:01:40.5]} 17. Qa6 {[%clk 0:01:56.7]} 17... Qxa2 {[%clk
0:01:36.3]} 18. Qxa2 {[%clk 0:01:51.4]} 18... Bxa2 {[%clk 0:01:37.2]} 19. Ra1
{[%clk 0:01:45.5]} 19... Rb1+ {[%clk 0:01:36.7]} 20. Rxb1 {[%clk 0:01:45.3]}
20... Bxb1 {[%clk 0:01:37.6]} 21. Nc3 {[%clk 0:01:43.8]} 21... Bd3 {[%clk
0:01:35.7]} 22. Rc7 {[%clk 0:01:40.4]} 22... a5 {[%clk 0:01:34.2]} 23. Rxe7
{[%clk 0:01:39.2]} 23... Rc8 {[%clk 0:01:31.9]} 24. Nd1 {[%clk 0:01:32]} 24...
Be2 {[%clk 0:01:21.6]} 25. Bd5 {[%clk 0:01:25.7]} 25... Bxd1 {[%clk 0:01:17.1]}
26. Rxf7 {[%clk 0:01:25.7]} 26... Kh8 {[%clk 0:01:16.8]} 27. Ra7 {[%clk
0:01:25.1]} 27... a4 {[%clk 0:01:16.9]} 28. Be6 {[%clk 0:01:24.3]} 28... Rb8
{[%clk 0:01:15.1]} 29. d5 {[%clk 0:01:23.7]} 29... Bf8 {[%clk 0:01:13]} 30. e4
{[%clk 0:01:20.7]} 30... Bf3 {[%clk 0:01:11.9]} 31. Bh3 {[%clk 0:01:11.1]} 31...
Rb1+ {[%clk 0:01:10.7]} 32. Bf1 {[%clk 0:01:11.2]} 32... Be2 {[%clk 0:01:10.3]}
33. Kg2 {[%clk 0:01:11.5]} 33... Bxf1+ {[%clk 0:01:09.5]} 34. Kf3 {[%clk
0:01:11.2]} 34... Rb3+ {[%clk 0:01:08.1]} 35. Kf4 {[%clk 0:01:10.9]} 35... Bd6+
{[%clk 0:01:06.8]} 36. Kg5 {[%clk 0:01:09.3]} 36... a3 {[%clk 0:00:57.9]} 37.
Kf6 {[%clk 0:01:05.6]} 37... Rb8 {[%clk 0:00:47.1]} 38. e5 {[%clk 0:01:03.1]}
38... Rf8+ {[%clk 0:00:45.3]} 39. Ke6 {[%clk 0:01:02.5]} 39... Bc5 {[%clk
0:00:44.5]} 40. Ra5 {[%clk 0:01:01.7]} 40... Bh3+ {[%clk 0:00:44.3]} 41. g4
{[%clk 0:00:59.3]} 41... Bxg4# {[%clk 0:00:44.2]} 0-1

[Event "*** Titled Tuesday Blitz"]
[Site "Chess.com"]
[Date "2021.04.06"]
[Round "1"]
[White "ri4mi"]
[Black "ShapkinAnatoliy"]
[Result "0-1"]
[WhiteElo "2358"]
[BlackElo "2663"]
[TimeControl "180+1"]
[EndTime "10:06:03 PDT"]
[Termination "ShapkinAnatoliy won on time"]

1. e4 {[%clk 0:02:55.6]} 1... e5 {[%clk 0:02:58.7]} 2. Nf3 {[%clk 0:02:53.3]}
2... Nc6 {[%clk 0:02:58.3]} 3. Bc4 {[%clk 0:02:51.9]} 3... Bc5 {[%clk
0:02:57.1]} 4. b4 {[%clk 0:02:48.4]} 4... Bb6 {[%clk 0:02:56.6]} 5. a4 {[%clk
0:02:43.9]} 5... a6 {[%clk 0:02:55.4]} 6. c3 {[%clk 0:02:37.7]} 6... Nf6 {[%clk
0:02:54.5]} 7. d3 {[%clk 0:02:37.7]} 7... d6 {[%clk 0:02:54.5]} 8. O-O {[%clk
0:02:37.5]} 8... O-O {[%clk 0:02:53.8]} 9. Bg5 {[%clk 0:02:12.9]} 9... h6 {[%clk
0:02:53.2]} 10. Bh4 {[%clk 0:02:12.2]} 10... g5 {[%clk 0:02:52.4]} 11. Nxg5
{[%clk 0:02:11.4]} 11... hxg5 {[%clk 0:02:53.3]} 12. Bxg5 {[%clk 0:02:12.1]}
12... Kg7 {[%clk 0:02:54]} 13. Qf3 {[%clk 0:02:02.7]} 13... Rh8 {[%clk
0:02:53.8]} 14. Na3 {[%clk 0:01:37.3]} 14... Kg6 {[%clk 0:02:51.4]} 15. Be3
{[%clk 0:01:34.6]} 15... Be6 {[%clk 0:02:35.6]} 16. Qg3+ {[%clk 0:01:05.2]}
16... Kh7 {[%clk 0:02:27.8]} 17. Bg5 {[%clk 0:00:57.9]} 17... Kg7 {[%clk
0:01:53]} 18. Bxe6 {[%clk 0:00:28.2]} 18... fxe6 {[%clk 0:01:52.7]} 19. Nc4
{[%clk 0:00:29.1]} 19... Ba7 {[%clk 0:01:39.1]} 20. Ne3 {[%clk 0:00:28.2]} 20...
Qf8 {[%clk 0:01:13.9]} 21. f4 {[%clk 0:00:15.7]} 21... Nh5 {[%clk 0:01:12.2]}
22. Bh6+ {[%clk 0:00:09.3]} 22... Kh7 {[%clk 0:01:03.4]} 23. Bxf8 {[%clk
0:00:01.5]} 23... Nxg3 {[%clk 0:01:03.5]} 0-1

[Event "*** Titled Tuesday Blitz"]
[Site "Chess.com"]
[Date "2021.04.06"]
[Round "1"]
[White "TigrVShlyape"]
[Black "Kale36"]
[Result "1-0"]
[WhiteElo "2801"]
[BlackElo "2424"]
[TimeControl "180+1"]
[EndTime "10:06:04 PDT"]
[Termination "TigrVShlyape won by resignation"]

1. d4 {[%clk 0:03:00.9]} 1... Nc6 {[%clk 0:02:30.9]} 2. Nf3 {[%clk 0:02:57.1]}
2... d6 {[%clk 0:02:13.5]} 3. e4 {[%clk 0:02:54]} 3... Bg4 {[%clk 0:02:12.7]} 4.
c3 {[%clk 0:02:50.9]} 4... Nf6 {[%clk 0:02:11.7]} 5. h3 {[%clk 0:02:48.2]} 5...
Bh5 {[%clk 0:02:08.1]} 6. Bd3 {[%clk 0:02:46.8]} 6... e5 {[%clk 0:02:06.9]} 7.
d5 {[%clk 0:02:39.2]} 7... Ne7 {[%clk 0:02:06.4]} 8. c4 {[%clk 0:02:39.3]} 8...
Bxf3 {[%clk 0:01:59.2]} 9. Qxf3 {[%clk 0:02:37.9]} 9... Ng6 {[%clk 0:01:57.5]}
10. g3 {[%clk 0:02:35.8]} 10... Be7 {[%clk 0:01:57.4]} 11. Nc3 {[%clk 0:02:35]}
11... O-O {[%clk 0:01:57.3]} 12. O-O {[%clk 0:02:31.8]} 12... a5 {[%clk
0:01:54.7]} 13. b3 {[%clk 0:02:30.7]} 13... Nd7 {[%clk 0:01:54.2]} 14. h4 {[%clk
0:02:27]} 14... Nc5 {[%clk 0:01:41.1]} 15. Bc2 {[%clk 0:02:26.4]} 15... Bf6
{[%clk 0:01:40.9]} 16. Rb1 {[%clk 0:02:23.7]} 16... Ne7 {[%clk 0:01:40.6]} 17.
a3 {[%clk 0:02:22.7]} 17... Kh8 {[%clk 0:01:17.9]} 18. Bd2 {[%clk 0:02:20.9]}
18... Ng8 {[%clk 0:01:17.7]} 19. b4 {[%clk 0:02:18.7]} 19... axb4 {[%clk
0:01:16]} 20. axb4 {[%clk 0:02:18.9]} 20... Nd7 {[%clk 0:01:13.8]} 21. Ra1
{[%clk 0:02:18]} 21... Rxa1 {[%clk 0:01:09.8]} 22. Rxa1 {[%clk 0:02:16.8]} 22...
g6 {[%clk 0:01:10.4]} 23. Be3 {[%clk 0:02:05.1]} 23... Bg7 {[%clk 0:01:06.8]}
24. c5 {[%clk 0:02:04.8]} 24... Bh6 {[%clk 0:00:53.9]} 25. c6 {[%clk 0:01:53.3]}
25... bxc6 {[%clk 0:00:40.4]} 26. dxc6 {[%clk 0:01:52.9]} 26... Qf6 {[%clk
0:00:31.2]} 27. Qxf6+ {[%clk 0:01:50.1]} 27... Ndxf6 {[%clk 0:00:31.1]} 28. Bxh6
{[%clk 0:01:41.4]} 28... Nxh6 {[%clk 0:00:32]} 29. Ra7 {[%clk 0:01:41.2]} 29...
Ne8 {[%clk 0:00:31.8]} 30. Nd5 {[%clk 0:01:40.5]} 30... f5 {[%clk 0:00:26.4]}
31. Nxc7 {[%clk 0:01:39]} 31... Nxc7 {[%clk 0:00:19.5]} 32. Rxc7 {[%clk
0:01:38.1]} 32... fxe4 {[%clk 0:00:19.8]} 33. Bxe4 {[%clk 0:01:36.1]} 33... Ng4
{[%clk 0:00:19.7]} 34. f3 {[%clk 0:01:33]} 34... Nf6 {[%clk 0:00:19.7]} 35. Rb7
{[%clk 0:01:31.3]} 35... d5 {[%clk 0:00:19.4]} 36. Bd3 {[%clk 0:01:29.6]} 36...
e4 {[%clk 0:00:19.4]} 37. fxe4 {[%clk 0:01:29.3]} 37... dxe4 {[%clk 0:00:19.8]}
38. Be2 {[%clk 0:01:29.2]} 38... Nd5 {[%clk 0:00:19.4]} 39. c7 {[%clk
0:01:29.2]} 39... Rc8 {[%clk 0:00:17.4]} 40. Rb8 {[%clk 0:01:28.6]} 1-0

[Event "*** Titled Tuesday Blitz"]
[Site "Chess.com"]
[Date "2021.04.06"]
[Round "1"]
[White "ega2006"]
[Black "A-Fier"]
[Result "0-1"]
[WhiteElo "2383"]
[BlackElo "2705"]
[TimeControl "180+1"]
[EndTime "10:06:07 PDT"]
[Termination "A-Fier won by resignation"]

1. e4 {[%clk 0:02:57.5]} 1... c5 {[%clk 0:03:00.1]} 2. Nf3 {[%clk 0:02:57.6]}
2... e6 {[%clk 0:02:59.8]} 3. Nc3 {[%clk 0:02:57.4]} 3... Nc6 {[%clk 0:02:59.6]}
4. d4 {[%clk 0:02:56.5]} 4... cxd4 {[%clk 0:03:00.5]} 5. Nxd4 {[%clk 0:02:56.7]}
5... Nf6 {[%clk 0:03:01.1]} 6. Nxc6 {[%clk 0:02:52.4]} 6... bxc6 {[%clk
0:03:01]} 7. Bd3 {[%clk 0:02:52.9]} 7... d5 {[%clk 0:03:00.5]} 8. O-O {[%clk
0:02:49.7]} 8... Be7 {[%clk 0:02:59.8]} 9. Qf3 {[%clk 0:02:49.2]} 9... O-O
{[%clk 0:02:57.9]} 10. Re1 {[%clk 0:02:48.9]} 10... a5 {[%clk 0:02:57.2]} 11.
Bf4 {[%clk 0:02:45.3]} 11... Ba6 {[%clk 0:02:56.7]} 12. Rad1 {[%clk 0:02:34.9]}
12... Bxd3 {[%clk 0:02:56]} 13. cxd3 {[%clk 0:02:32.2]} 13... Qb6 {[%clk
0:02:54.6]} 14. Re2 {[%clk 0:02:27.8]} 14... Rad8 {[%clk 0:02:51.4]} 15. Rde1
{[%clk 0:02:24.5]} 15... Nd7 {[%clk 0:02:48.4]} 16. exd5 {[%clk 0:02:16.5]}
16... cxd5 {[%clk 0:02:48.6]} 17. Nxd5 {[%clk 0:02:15.9]} 17... exd5 {[%clk
0:02:48.8]} 18. Rxe7 {[%clk 0:02:15.5]} 18... Qb5 {[%clk 0:02:43]} 19. Bc7
{[%clk 0:00:58]} 19... Rc8 {[%clk 0:02:40.6]} 20. Bd6 {[%clk 0:00:57.8]} 20...
Qc6 {[%clk 0:02:16.9]} 21. Ba3 {[%clk 0:00:46.5]} 21... Nf6 {[%clk 0:02:13.3]}
22. h3 {[%clk 0:00:43.5]} 22... h6 {[%clk 0:02:12.6]} 23. Qf5 {[%clk 0:00:40.7]}
23... Rfe8 {[%clk 0:02:08.6]} 24. Qf4 {[%clk 0:00:17.5]} 24... Rxe7 {[%clk
0:02:07.4]} 25. Rxe7 {[%clk 0:00:18.3]} 25... Re8 {[%clk 0:02:05.1]} 26. Rxe8+
{[%clk 0:00:12.1]} 26... Qxe8 {[%clk 0:02:04.9]} 27. Qe3 {[%clk 0:00:12.2]}
27... Qc6 {[%clk 0:02:04.4]} 28. Qc5 {[%clk 0:00:10.9]} 28... Qe6 {[%clk
0:02:02.5]} 29. Qxa5 {[%clk 0:00:09.9]} 29... Qe2 {[%clk 0:02:01.7]} 30. Qc3
{[%clk 0:00:09.3]} 30... Qd1+ {[%clk 0:01:59.3]} 31. Kh2 {[%clk 0:00:09.7]}
31... Qe2 {[%clk 0:02:00]} 32. Bc5 {[%clk 0:00:09]} 32... Nd7 {[%clk 0:01:58.2]}
33. Bd4 {[%clk 0:00:09.1]} 33... Nf8 {[%clk 0:01:58.4]} 34. Bxg7 {[%clk
0:00:07.4]} 34... Ne6 {[%clk 0:01:58.9]} 35. Be5 {[%clk 0:00:06.7]} 35... Qxf2
{[%clk 0:01:58.5]} 36. Bg3 {[%clk 0:00:06.8]} 36... Qe2 {[%clk 0:01:58.3]} 37.
Qc8+ {[%clk 0:00:06.8]} 37... Kg7 {[%clk 0:01:58]} 38. Qc3+ {[%clk 0:00:07.5]}
38... d4 {[%clk 0:01:58.3]} 39. Qc4 {[%clk 0:00:08.1]} 39... Qxb2 {[%clk
0:01:58]} 40. a4 {[%clk 0:00:07.8]} 40... Qa1 {[%clk 0:01:55.9]} 41. Qb5 {[%clk
0:00:07.8]} 41... Qa2 {[%clk 0:01:53.3]} 42. a5 {[%clk 0:00:08]} 42... Ng5
{[%clk 0:01:53.7]} 43. Qf5 {[%clk 0:00:07.9]} 43... f6 {[%clk 0:01:51.2]} 44. h4
{[%clk 0:00:05.9]} 44... Nf7 {[%clk 0:01:51.6]} 45. Qd5 {[%clk 0:00:05.8]} 45...
Qxd5 {[%clk 0:01:49.6]} 0-1

[Event "*** Titled Tuesday Blitz"]
[Site "Chess.com"]
[Date "2021.04.06"]
[Round "1"]
[White "AlexOstrovskiy"]
[Black "ffbp3q"]
[Result "1-0"]
[WhiteElo "2749"]
[BlackElo "2407"]
[TimeControl "180+1"]
[EndTime "10:06:12 PDT"]
[Termination "AlexOstrovskiy won by resignation"]

1. d4 {[%clk 0:03:00.3]} 1... Nf6 {[%clk 0:02:59.1]} 2. Bf4 {[%clk 0:02:58.2]}
2... d5 {[%clk 0:02:58.3]} 3. e3 {[%clk 0:02:57.4]} 3... c5 {[%clk 0:02:58.3]}
4. c3 {[%clk 0:02:57.1]} 4... Qb6 {[%clk 0:02:57.1]} 5. Qb3 {[%clk 0:02:56.6]}
5... c4 {[%clk 0:02:56.1]} 6. Qc2 {[%clk 0:02:56.5]} 6... g6 {[%clk 0:02:54.8]}
7. Nd2 {[%clk 0:02:55.2]} 7... Bf5 {[%clk 0:02:54.6]} 8. Qc1 {[%clk 0:02:55.2]}
8... Nc6 {[%clk 0:02:52]} 9. h3 {[%clk 0:02:55]} 9... Bg7 {[%clk 0:02:50.5]} 10.
Ngf3 {[%clk 0:02:54.9]} 10... O-O {[%clk 0:02:49.9]} 11. Be2 {[%clk 0:02:55.5]}
11... Rac8 {[%clk 0:02:42.6]} 12. O-O {[%clk 0:02:55.4]} 12... h6 {[%clk
0:02:40.5]} 13. Re1 {[%clk 0:02:55.6]} 13... g5 {[%clk 0:02:39.9]} 14. Bh2
{[%clk 0:02:54.2]} 14... Bh7 {[%clk 0:02:34.7]} 15. Bd1 {[%clk 0:02:48.9]} 15...
Rfe8 {[%clk 0:02:31.3]} 16. Bc2 {[%clk 0:02:47.1]} 16... Bxc2 {[%clk 0:02:11.8]}
17. Qxc2 {[%clk 0:02:48]} 17... e6 {[%clk 0:02:12]} 18. e4 {[%clk 0:02:46.4]}
18... Ne7 {[%clk 0:02:07.7]} 19. Ne5 {[%clk 0:02:29]} 19... Nc6 {[%clk 0:01:44]}
20. Nef3 {[%clk 0:02:16.9]} 20... Qd8 {[%clk 0:01:39.9]} 21. Re2 {[%clk
0:02:16.1]} 21... dxe4 {[%clk 0:01:32.5]} 22. Nxe4 {[%clk 0:02:15.9]} 22... Nxe4
{[%clk 0:01:31.6]} 23. Rxe4 {[%clk 0:02:16.8]} 23... Ne7 {[%clk 0:01:29.4]} 24.
Rae1 {[%clk 0:02:14.5]} 24... Nd5 {[%clk 0:01:28.4]} 25. Ne5 {[%clk 0:02:13.6]}
25... b5 {[%clk 0:01:24]} 26. h4 {[%clk 0:02:02.9]} 26... a5 {[%clk 0:01:00.7]}
27. hxg5 {[%clk 0:02:00.2]} 27... hxg5 {[%clk 0:01:00.9]} 28. Qe2 {[%clk
0:01:48.5]} 28... Qf6 {[%clk 0:00:55.1]} 29. Nd7 {[%clk 0:01:41.7]} 29... Qh6
{[%clk 0:00:45.4]} 30. Qf3 {[%clk 0:01:28.6]} 30... f5 {[%clk 0:00:37.4]} 31.
Rxe6 {[%clk 0:01:19.6]} 31... Rxe6 {[%clk 0:00:33.4]} 32. Qxd5 {[%clk 0:01:19]}
32... Re8 {[%clk 0:00:22.8]} 33. Nc5 {[%clk 0:01:18.7]} 33... Kf7 {[%clk
0:00:16.5]} 34. Nxe6 {[%clk 0:01:06.9]} 34... Rxe6 {[%clk 0:00:15.1]} 35. Qd7+
{[%clk 0:01:05.9]} 1-0

[Event "*** Titled Tuesday Blitz"]
[Site "Chess.com"]
[Date "2021.04.06"]
[Round "1"]
[White "LileKoridze"]
[Black "pfalcon1949"]
[Result "1/2-1/2"]
[WhiteElo "2478"]
[BlackElo "1998"]
[TimeControl "180+1"]
[EndTime "10:06:13 PDT"]
[Termination "Game drawn by repetition"]

1. d4 {[%clk 0:03:00.9]} 1... Nf6 {[%clk 0:02:58.3]} 2. c4 {[%clk 0:03:00.6]}
2... e6 {[%clk 0:02:57.4]} 3. Nc3 {[%clk 0:03:00.3]} 3... Bb4 {[%clk 0:02:57.5]}
4. e3 {[%clk 0:03:00.5]} 4... b6 {[%clk 0:02:54.9]} 5. Bd3 {[%clk 0:03:01]} 5...
Bb7 {[%clk 0:02:54.2]} 6. Nf3 {[%clk 0:03:00.4]} 6... O-O {[%clk 0:02:51.8]} 7.
O-O {[%clk 0:03:00]} 7... d5 {[%clk 0:02:51.5]} 8. cxd5 {[%clk 0:02:56.3]} 8...
Nxd5 {[%clk 0:02:50.2]} 9. Bd2 {[%clk 0:02:45]} 9... Nxc3 {[%clk 0:02:30.7]} 10.
bxc3 {[%clk 0:02:44.9]} 10... Be7 {[%clk 0:02:28.6]} 11. e4 {[%clk 0:02:41.7]}
11... Nd7 {[%clk 0:02:29]} 12. Qe2 {[%clk 0:02:40.8]} 12... c5 {[%clk
0:02:28.5]} 13. Rad1 {[%clk 0:02:40.6]} 13... Rc8 {[%clk 0:02:27.8]} 14. Bb1
{[%clk 0:02:40.3]} 14... Qc7 {[%clk 0:02:27]} 15. e5 {[%clk 0:02:38]} 15... Rfd8
{[%clk 0:02:22.3]} 16. Bg5 {[%clk 0:02:29.7]} 16... Nf8 {[%clk 0:02:20.5]} 17.
Bxe7 {[%clk 0:02:23.2]} 17... Qxe7 {[%clk 0:02:21.4]} 18. Qe3 {[%clk 0:02:20.6]}
18... cxd4 {[%clk 0:02:18.4]} 19. cxd4 {[%clk 0:02:20.2]} 19... Bxf3 {[%clk
0:02:08.6]} 20. Qxf3 {[%clk 0:02:18.8]} 20... Qb4 {[%clk 0:02:04.1]} 21. d5
{[%clk 0:02:10.7]} 21... Rxd5 {[%clk 0:01:56.8]} 22. Rxd5 {[%clk 0:02:06.7]}
22... exd5 {[%clk 0:01:57.7]} 23. Qxd5 {[%clk 0:02:07.1]} 23... Qb2 {[%clk
0:01:56.1]} 24. Qd1 {[%clk 0:01:37.7]} 24... g6 {[%clk 0:01:45.6]} 25. Re1
{[%clk 0:01:34.5]} 25... Kg7 {[%clk 0:01:43.8]} 26. h3 {[%clk 0:01:07.8]} 26...
Ne6 {[%clk 0:01:42.1]} 27. Be4 {[%clk 0:00:52.9]} 27... Rd8 {[%clk 0:01:32.3]}
28. Qa4 {[%clk 0:00:42.1]} 28... a5 {[%clk 0:01:17.1]} 29. Bf3 {[%clk
0:00:25.2]} 29... Rd2 {[%clk 0:01:13.5]} 30. Qh4 {[%clk 0:00:17.7]} 30... Qxa2
{[%clk 0:01:07.5]} 31. Qf6+ {[%clk 0:00:17.1]} 31... Kg8 {[%clk 0:01:06.3]} 32.
Rc1 {[%clk 0:00:14.9]} 32... Rc2 {[%clk 0:01:02.8]} 33. Rd1 {[%clk 0:00:14.2]}
33... Rd2 {[%clk 0:01:02.3]} 34. Rc1 {[%clk 0:00:14.3]} 34... Rc2 {[%clk
0:01:02.4]} 35. Rd1 {[%clk 0:00:14.9]} 35... Rd2 {[%clk 0:01:02.4]} 36. Rc1
{[%clk 0:00:15.3]} 1/2-1/2